bitfinex/quotes_BTCUSD_20250831
["timestamp","ask_amount","ask_price","bid_price","bid_amount"]
[1756613130275,1.63046953,109290.0,109280.0,0.00028]
[1756613131360,0.58377632,109290.0,109280.0,0.00028]
[1756613131583,1.54213321,109290.0,109280.0,0.00028]
[1756613133930,2.43094642,109290.0,109280.0,0.00028]
[1756613134273,1.54213321,109290.0,109280.0,0.00028]
[1756613135966,2.43094642,109290.0,109280.0,0.00028]
[1756613136168,1.54213321,109290.0,109280.0,0.00028]
[1756613140022,2.43094642,109290.0,109280.0,0.00028]
[1756613141027,2.13467535,109290.0,109280.0,0.00028]
[1756613141184,1.54213321,109290.0,109280.0,0.00028]
[1756613141977,2.51924274,109290.0,109280.0,1e-08]
[1756613142256,2.53632913,109290.0,109280.0,1e-08]
[1756613144691,2.53632933,109290.0,109280.0,1e-08]
[1756613145561,2.53633042,109290.0,109280.0,1e-08]
[1756613148886,2.53733042,109290.0,109280.0,1e-08]
[1756613149239,2.54374226,109290.0,109280.0,1e-08]
[1756613149438,2.56343949,109290.0,109280.0,1e-08]
[1756613149884,0.52306636,109250.0,109240.0,0.0002]
[1756613150029,1.41187957,109250.0,109240.0,0.09318001]
[1756613150234,1.41187957,109250.0,109240.0,0.09520001]
[1756613150434,1.43940057,109250.0,109240.0,0.09520001]
[1756613151090,1.43940057,109250.0,109240.0,0.09787001]
[1756613151344,1.43953125,109250.0,109240.0,0.09787001]
[1756613151516,1.43953125,109250.0,109240.0,0.10087001]
[1756613151749,1.53297757,109250.0,109240.0,0.00422]
[1756613151956,1.69073757,109250.0,109240.0,0.00222]
[1756613152171,1.53297757,109250.0,109240.0,0.00222]
[1756613152393,1.73174595,109250.0,109240.0,0.00422]
[1756613153024,2.62055916,109250.0,109240.0,0.0022]
[1756613153222,1.57398595,109250.0,109240.0,0.0042]
[1756613153375,1.73174595,109250.0,109240.0,0.00622]
[1756613153874,1.73174595,109250.0,109240.0,0.00422]
[1756613154079,1.73174595,109250.0,109240.0,0.0022]
[1756613154295,1.73374595,109250.0,109240.0,0.0002]
[1756613154821,1.73174595,109250.0,109240.0,0.0002]
[1756613155694,1.48568963,109250.0,109240.0,0.00222]
[1756613155878,1.64344963,109250.0,109240.0,0.00222]
[1756613158416,1.48568963,109250.0,109240.0,0.00222]
[1756613158663,1.14326018,109250.0,109240.0,0.09787001]
[1756613158878,1.11573918,109250.0,109240.0,0.24787001]
[1756613159083,0.77573918,109250.0,109240.0,0.11880883]
[1756613159517,1.11573918,109250.0,109240.0,0.11880883]
[1756613160292,1.11573918,109250.0,109240.0,0.11980883]
[1756613160695,1.11573918,109250.0,109240.0,0.11880883]
[1756613161075,1.11573918,109250.0,109240.0,0.12080883]
[1756613161379,0.91884216,109250.0,109240.0,0.12280883]
[1756613163978,0.91884216,109250.0,109240.0,0.15032783]
[1756613164965,0.91884216,109250.0,109240.0,0.30804783]
[1756613165826,0.92192216,109250.0,109240.0,0.14765783]
[1756613166400,0.92192216,109250.0,109240.0,0.09718001]
[1756613166401,0.92399216,109250.0,109240.0,0.09718001]
[1756613166618,0.52834704,109250.0,109240.0,0.09718001]
[1756613166834,0.92399216,109250.0,109240.0,0.09718001]
[1756613168482,0.92399216,109250.0,109240.0,0.0042]
[1756613168890,1.08167216,109250.0,109240.0,0.0042]
[1756613169382,1.10919516,109250.0,109240.0,0.0042]
[1756613170462,0.95151516,109250.0,109240.0,0.0042]
[1756613171212,1.10919516,109250.0,109240.0,0.0042]
[1756613171768,1.12626845,109250.0,109240.0,0.0042]
[1756613173348,0.96858845,109250.0,109240.0,0.0042]
[1756613175671,0.57294333,109250.0,109240.0,0.0042]
[1756613175891,0.96859918,109250.0,109240.0,0.0042]
[1756613176747,0.96860253,109250.0,109240.0,0.0042]
[1756613182996,0.96861728,109250.0,109240.0,0.0042]
[1756613186531,0.96862275,109250.0,109240.0,0.0042]
[1756613187085,0.96862266,109250.0,109240.0,0.0042]
[1756613190103,0.94109966,109250.0,109240.0,0.0042]
[1756613192337,0.54545454,109250.0,109240.0,0.0042]
[1756613192489,0.94109966,109250.0,109240.0,0.0042]
[1756613193093,0.92399216,109250.0,109240.0,0.0042]
[1756613193315,1.12190858,109250.0,109240.0,0.0042]
[1756613196235,1.13902972,109250.0,109240.0,0.0042]
[1756613197218,1.13903038,109250.0,109240.0,0.0042]
[1756613198879,1.12190858,109250.0,109240.0,0.0042]
[1756613199029,1.13903089,109250.0,109240.0,0.0042]
[1756613202508,0.54546935,109250.0,109240.0,0.0042]
[1756613202734,1.13903089,109250.0,109240.0,0.0042]
[1756613203494,1.20295227,109250.0,109240.0,0.0042]
[1756613203703,1.13903089,109250.0,109240.0,0.0042]
[1756613207993,0.18308311,109240.0,109230.0,0.0704]
[1756613208321,0.78181465,109240.0,109230.0,0.22788]
[1756613208545,0.18825311,109240.0,109230.0,0.0704]
[1756613208726,0.78181465,109240.0,109230.0,0.0704]
[1756613208924,0.78181465,109240.0,109230.0,0.22788]
[1756613209152,0.78181465,109240.0,109230.0,0.22988]
[1756613210270,0.78181465,109240.0,109230.0,0.0724]
[1756613210400,0.78181465,109240.0,109230.0,0.22988]
[1756613210599,0.78181465,109240.0,109230.0,0.16048]
[1756613210850,0.78181465,109240.0,109230.0,0.003]
[1756613211090,0.78181465,109240.0,109230.0,0.002]
[1756613211295,0.78181465,109240.0,109230.0,0.003]
[1756613211296,1.32437174,109240.0,109230.0,0.003]
[1756613211714,0.52311664,109220.0,109210.0,0.11982482]
[1756613212020,1.11667818,109220.0,109210.0,0.37028483]
[1756613212226,1.11883818,109220.0,109210.0,0.19400601]
[1756613212428,1.12192818,109220.0,109210.0,0.12146601]
[1756613212646,1.12192818,109220.0,109210.0,0.09394001]
[1756613213370,1.12192818,109220.0,109210.0,0.25138001]
[1756613213371,0.92428048,109220.0,109210.0,0.25138001]
[1756613213610,0.92428048,109220.0,109210.0,0.09394001]
[1756613213830,0.92428048,109220.0,109210.0,0.25138001]
[1756613213951,0.91903048,109220.0,109210.0,0.25352001]
[1756613214591,0.93080973,109220.0,109210.0,0.25352001]
[1756613214813,0.93080973,109220.0,109210.0,0.25552001]
[1756613215228,0.93080973,109220.0,109210.0,0.25352001]
[1756613215466,0.93389973,109220.0,109210.0,0.25352001]
[1756613215886,0.001,109240.0,109230.0,0.18309988]
[1756613216274,0.001,109240.0,109230.0,0.85518255]
[1756613216725,0.00013068,109250.0,109240.0,0.20402193]
[1756613216948,0.00013068,109250.0,109240.0,0.76498578]
[1756613217166,0.00013068,109250.0,109240.0,0.76712578]
[1756613217388,0.00013068,109250.0,109240.0,0.76512578]
[1756613217957,0.00013068,109250.0,109240.0,0.76812578]
[1756613218177,0.00013068,109250.0,109240.0,0.76412578]
[1756613218579,0.00013068,109250.0,109240.0,0.77012578]
[1756613218825,0.00113068,109250.0,109240.0,0.77512578]
[1756613219034,0.18419704,109250.0,109240.0,0.35656883]
[1756613219243,0.18419704,109250.0,109240.0,0.53798194]
[1756613220282,0.00113068,109250.0,109240.0,0.53965194]
[1756613220454,0.00113068,109250.0,109240.0,0.93556578]
[1756613223177,0.00113068,109250.0,109240.0,0.98556578]
[1756613224255,0.00113068,109250.0,109240.0,1.43147962]
[1756613224446,0.00113068,109250.0,109240.0,1.03556578]
[1756613224666,0.00113068,109250.0,109240.0,1.43147962]
[1756613224869,0.00113068,109250.0,109240.0,1.03556578]
[1756613225072,0.00113068,109250.0,109240.0,0.87812578]
[1756613225239,0.00113068,109250.0,109240.0,1.03548578]
[1756613227062,0.00113068,109250.0,109240.0,0.87812578]
[1756613227319,0.00113068,109250.0,109240.0,1.03544578]
[1756613227520,0.00113068,109250.0,109240.0,1.06295678]
[1756613229759,0.00113068,109250.0,109240.0,0.94616632]
[1756613229986,0.00113068,109250.0,109240.0,1.10348632]
[1756613231795,0.00113068,109250.0,109240.0,0.94616632]
[1756613232107,0.00113068,109250.0,109240.0,1.10348632]
[1756613232313,0.00113068,109250.0,109240.0,0.70753248]
[1756613232518,0.00638068,109250.0,109240.0,0.61533294]
[1756613232693,0.00113068,109250.0,109240.0,0.61533294]
[1756613235448,0.00113068,109250.0,109240.0,0.45805294]
[1756613235777,0.00113068,109250.0,109240.0,0.61529294]
[1756613236428,0.00422068,109250.0,109240.0,0.61529294]
[1756613236951,0.00638068,109250.0,109240.0,0.61315294]
[1756613237299,0.00638068,109250.0,109240.0,0.61529294]
[1756613239396,0.00638068,109250.0,109240.0,0.56529294]
[1756613239597,0.00638068,109250.0,109240.0,0.61529294]
[1756613242560,0.00638068,109250.0,109240.0,0.61525294]
[1756613243172,0.00422068,109250.0,109240.0,0.61525294]
[1756613244295,0.00422068,109250.0,109240.0,0.56525294]
[1756613244495,0.00113068,109250.0,109240.0,0.61525294]
[1756613244667,0.00113068,109250.0,109240.0,1.01283678]
[1756613244868,0.00113068,109250.0,109240.0,0.61692294]
[1756613245835,0.00113068,109250.0,109240.0,1.0786801]
[1756613246545,0.00113068,109250.0,109240.0,0.68276626]
[1756613246727,0.00113068,109250.0,109240.0,1.0786801]
[1756613247267,0.40460345,109270.0,109260.0,0.20398842]
[1756613247474,0.58106705,109270.0,109260.0,0.52500481]
[1756613247880,0.58106705,109270.0,109260.0,0.55251781]
[1756613248635,0.18515321,109270.0,109260.0,0.55251781]
[1756613248779,0.58106705,109270.0,109260.0,0.55251781]
[1756613249048,0.58106705,109270.0,109260.0,0.55651781]
[1756613249249,0.58409705,109270.0,109260.0,0.55651781]
[1756613249448,0.58409705,109270.0,109260.0,0.55951781]
[1756613250720,0.18818321,109270.0,109260.0,0.55951781]
[1756613250867,0.58409705,109270.0,109260.0,0.37646821]
[1756613251458,0.58409705,109270.0,109260.0,0.55951781]
[1756613251880,0.58409705,109270.0,109260.0,0.37646821]
[1756613252306,0.58409705,109270.0,109260.0,0.55951781]
[1756613255524,0.58409705,109270.0,109260.0,0.56156781]
[1756613256426,0.57894705,109270.0,109260.0,0.56156781]
[1756613256855,0.58409705,109270.0,109260.0,0.56156781]
[1756613257830,0.18515321,109270.0,109260.0,0.56156781]
[1756613257982,0.57894669,109270.0,109260.0,0.56156781]
[1756613258193,0.58106669,109270.0,109260.0,0.56156781]
[1756613258403,0.18818285,109270.0,109260.0,0.56156781]
[1756613258604,0.52604709,109280.0,109270.0,0.20397167]
[1756613258763,0.52604709,109280.0,109270.0,0.29695168]
[1756613258764,0.92408093,109280.0,109270.0,0.29695168]
[1756613258964,0.34515,109280.0,109270.0,0.29900168]
[1756613259172,0.34515,109280.0,109270.0,0.32651168]
[1756613259374,0.74106384,109280.0,109270.0,0.32651168]
[1756613259597,0.34515,109280.0,109270.0,0.32651168]
[1756613259795,0.40106384,109280.0,109270.0,0.32646168]
[1756613260169,0.00515,109280.0,109270.0,0.32846168]
[1756613260425,0.58407994,109280.0,109270.0,0.32846168]
[1756613262091,0.58407994,109280.0,109270.0,0.48550168]
[1756613266024,0.1881661,109280.0,109270.0,0.48550168]
[1756613266161,0.58407994,109280.0,109270.0,0.48550168]
[1756613267692,0.58407994,109280.0,109270.0,0.45799168]
[1756613268222,0.58407994,109280.0,109270.0,0.30095168]
[1756613268437,0.58407994,109280.0,109270.0,0.45791168]
[1756613269468,0.1881661,109280.0,109270.0,0.45791168]
[1756613269667,0.58407994,109280.0,109270.0,0.46002168]
[1756613269868,0.58407994,109280.0,109270.0,0.45791168]
[1756613270943,0.58407994,109280.0,109270.0,0.30095168]
[1756613271297,0.58407994,109280.0,109270.0,0.45791168]
[1756613272162,0.1881661,109280.0,109270.0,0.45791168]
[1756613272309,0.58407994,109280.0,109270.0,0.45791168]
[1756613272913,0.58407994,109280.0,109270.0,0.11791883]
[1756613273135,0.97999378,109280.0,109270.0,0.27483883]
[1756613273349,0.58407994,109280.0,109270.0,0.27483883]
[1756613274541,0.40106384,109280.0,109270.0,0.27483883]
[1756613275322,0.40106384,109280.0,109270.0,0.45787168]
[1756613276542,0.58407994,109280.0,109270.0,0.30095168]
[1756613276734,0.40106384,109280.0,109270.0,0.45787168]
[1756613277114,0.40106384,109280.0,109270.0,0.52823168]
[1756613278628,0.58407994,109280.0,109270.0,0.52823168]
[1756613279480,0.58407994,109280.0,109270.0,0.37131168]
[1756613279723,0.58407994,109280.0,109270.0,0.52819168]
[1756613280511,0.00515,109280.0,109270.0,0.52819168]
[1756613280861,0.40106384,109280.0,109270.0,0.53030168]
[1756613281066,0.39803384,109280.0,109270.0,0.53030168]
[1756613281340,0.40110384,109280.0,109270.0,0.52819168]
[1756613281548,0.40110384,109280.0,109270.0,0.53030168]
[1756613282122,0.00519,109280.0,109270.0,0.53030168]
[1756613282323,0.40110384,109280.0,109270.0,0.53030168]
[1756613282643,0.39803384,109280.0,109270.0,0.53030168]
[1756613283010,0.39803384,109280.0,109270.0,0.68030168]
[1756613283187,0.39803384,109280.0,109270.0,0.53030168]
[1756613284031,0.39591384,109280.0,109270.0,0.53337168]
[1756613284268,0.54663903,109290.0,109280.0,0.20395492]
[1756613284468,0.94455287,109290.0,109280.0,0.29693493]
[1756613286265,0.94455287,109290.0,109280.0,0.29793493]
[1756613286677,0.94455287,109290.0,109280.0,0.11491883]
[1756613287393,1.14168501,109290.0,109280.0,0.11491883]
[1756613287812,1.14168501,109290.0,109280.0,0.27171883]
[1756613295134,1.14168501,109290.0,109280.0,0.27167883]
[1756613297439,1.14168501,109290.0,109280.0,0.27163883]
[1756613312269,0.54863903,109290.0,109280.0,0.27163883]
[1756613312485,1.14168501,109290.0,109280.0,0.27163883]
[1756613315668,1.13894038,109290.0,109280.0,0.27163883]
[1756613316784,1.13890038,109290.0,109280.0,0.27163883]
[1756613322218,1.13890038,109290.0,109280.0,0.27026837]
[1756613323609,0.92436788,109290.0,109280.0,0.27026837]
[1756613323815,1.11653246,109290.0,109280.0,0.27026837]
[1756613326464,1.12715804,109290.0,109280.0,0.27026837]
[1756613327490,0.79783614,109290.0,109280.0,0.27225837]
[1756613328053,0.79783614,109290.0,109280.0,0.29976737]
[1756613329836,0.79783614,109290.0,109280.0,0.14304737]
[1756613330041,0.79783614,109290.0,109280.0,0.29948737]
[1756613332948,0.79783614,109290.0,109280.0,0.14304737]
[1756613333155,0.79783614,109290.0,109280.0,0.29948737]
[1756613335524,0.79783614,109290.0,109280.0,0.14304737]
[1756613335676,0.79783614,109290.0,109280.0,0.29944737]
[1756613336081,0.79583614,109290.0,109280.0,0.30265737]
[1756613340630,0.79798614,109290.0,109280.0,0.30265737]
[1756613340839,0.79798614,109290.0,109280.0,0.14304737]
[1756613341041,0.79798614,109290.0,109280.0,0.29741737]
[1756613341266,0.79798614,109290.0,109280.0,0.14105737]
[1756613341445,0.79798614,109290.0,109280.0,0.29741737]
[1756613343151,0.79798614,109290.0,109280.0,0.29954737]
[1756613344208,0.79798614,109290.0,109280.0,0.29741737]
[1756613344432,0.80115614,109290.0,109280.0,0.29737737]
[1756613344784,0.79798614,109290.0,109280.0,0.14105737]
[1756613344983,0.79798614,109290.0,109280.0,0.29737737]
[1756613346611,0.79798614,109290.0,109280.0,0.14318737]
[1756613346817,0.79798614,109290.0,109280.0,0.29950737]
[1756613347560,0.79798614,109290.0,109280.0,0.29946737]
[1756613348243,1.13798614,109290.0,109280.0,0.29946737]
[1756613350922,1.13798614,109290.0,109280.0,0.14318737]
[1756613351200,1.13798614,109290.0,109280.0,0.29946737]
[1756613353671,1.14115614,109290.0,109280.0,0.29946737]
[1756613355537,1.14115614,109290.0,109280.0,0.14105737]
[1756613355741,1.14115614,109290.0,109280.0,0.29729737]
[1756613355961,0.54811016,109290.0,109280.0,0.29729737]
[1756613356240,1.14115614,109290.0,109280.0,0.29729737]
[1756613364319,1.11115614,109290.0,109280.0,0.29729737]
[1756613367451,1.10798614,109290.0,109280.0,0.29729737]
[1756613371624,1.10798614,109290.0,109280.0,0.29928737]
[1756613378365,1.10798614,109290.0,109280.0,0.29729737]
[1756613380177,1.10522554,109290.0,109280.0,0.27772901]
[1756613380605,1.10522554,109290.0,109280.0,0.27748901]
[1756613385108,1.10522554,109290.0,109280.0,0.27947901]
[1756613387029,1.10522554,109290.0,109280.0,0.28270901]
[1756613387236,1.10522554,109290.0,109280.0,0.28133063]
[1756613389397,1.10522554,109290.0,109280.0,0.27810063]
[1756613390943,1.10522554,109290.0,109280.0,0.27802063]
[1756613391896,1.10836554,109290.0,109280.0,0.12011063]
[1756613392147,1.40488853,109290.0,109280.0,0.27603063]
[1756613392377,1.42200164,109290.0,109280.0,0.184429]
[1756613394199,1.57792164,109290.0,109280.0,0.184429]
[1756613394611,1.57792164,109290.0,109280.0,0.001]
[1756613394751,1.57792164,109290.0,109280.0,0.15688]
[1756613395406,1.60543564,109290.0,109280.0,0.15688]
[1756613397927,1.60540605,109290.0,109280.0,0.15688]
[1756613398493,1.6054033,109290.0,109280.0,0.15688]
[1756613399269,1.6905056,109290.0,109280.0,0.15688]
[1756613399473,1.6905056,109290.0,109270.0,0.097874]
[1756613399474,0.1830161,109280.0,109270.0,0.097874]
[1756613399619,0.52303285,109270.0,109260.0,0.00047638]
[1756613399825,1.11607883,109270.0,109260.0,0.27681239]
[1756613400052,1.12131883,109270.0,109260.0,0.27681239]
[1756613400943,1.12131883,109270.0,109260.0,0.28081239]
[1756613401421,1.12131883,109270.0,109260.0,0.28381239]
[1756613401632,1.41784182,109270.0,109260.0,0.28381239]
[1756613401761,1.41784182,109270.0,109260.0,0.19083238]
[1756613401961,1.70656778,109270.0,109260.0,0.03499238]
[1756613402369,1.70656778,109270.0,109260.0,0.00747638]
[1756613402571,1.46243146,109270.0,109260.0,0.00747638]
[1756613402774,1.61827146,109270.0,109260.0,0.00047638]
[1756613402975,1.61827146,109270.0,109260.0,0.00147638]
[1756613403179,1.61827146,109270.0,109260.0,0.00347638]
[1756613403378,1.61827146,109270.0,109260.0,0.00247638]
[1756613403596,1.61827146,109270.0,109260.0,0.00047638]
[1756613403872,1.61827146,109270.0,109260.0,0.00147638]
[1756613404070,1.61827146,109270.0,109260.0,0.00347638]
[1756613405086,1.46243146,109270.0,109260.0,0.00347638]
[1756613405306,1.61827146,109270.0,109260.0,0.00347638]
[1756613406367,1.60120082,109270.0,109260.0,0.00347638]
[1756613406575,1.60120082,109270.0,109260.0,0.00047638]
[1756613408461,1.61823552,109270.0,109260.0,0.00047638]
[1756613408625,1.64146297,109270.0,109260.0,0.00047638]
[1756613409118,1.61819552,109270.0,109260.0,0.00047638]
[1756613410752,1.46239552,109270.0,109260.0,0.00047638]
[1756613410935,1.61819552,109270.0,109260.0,0.00047638]
[1756613411734,1.61295552,109270.0,109260.0,0.00244638]
[1756613411945,1.45925552,109270.0,109260.0,0.00244638]
[1756613412346,1.46239552,109270.0,109260.0,0.00047638]
[1756613412779,1.46239147,109270.0,109260.0,0.00047638]
[1756613414668,1.46239295,109270.0,109260.0,0.00047638]
[1756613417911,1.51866919,109270.0,109260.0,0.00047638]
[1756613418114,1.50163706,109270.0,109260.0,0.00047638]
[1756613418337,1.51867627,109270.0,109260.0,0.00047638]
[1756613419190,1.46240003,109270.0,109260.0,0.00047638]
[1756613422057,1.61812003,109270.0,109260.0,0.00047638]
[1756613428420,1.63780581,109270.0,109260.0,0.00047638]
[1756613428844,1.63785793,109270.0,109260.0,0.00047638]
[1756613429186,1.6442706,109270.0,109260.0,0.00047638]
[1756613429841,1.58771922,109270.0,109260.0,0.00047638]
[1756613431273,1.60742984,109270.0,109260.0,0.00047638]
[1756613436048,1.60743326,109270.0,109260.0,0.00047638]
[1756613437579,1.60429326,109270.0,109260.0,0.00247638]
[1756613438502,1.60745326,109270.0,109260.0,0.00047638]
[1756613439680,1.60747143,109270.0,109260.0,0.00047638]
[1756613445327,1.60105536,109270.0,109260.0,0.00047638]
[1756613447344,1.62270458,109270.0,109260.0,0.00047638]
[1756613448049,1.59518558,109270.0,109260.0,0.00047638]
[1756613448467,1.57995311,109270.0,109260.0,0.00047638]
[1756613450335,1.57995444,109270.0,109260.0,0.00047638]
[1756613450538,1.57995441,109270.0,109260.0,0.00047638]
[1756613451338,1.57995426,109270.0,109260.0,0.00047638]
[1756613452944,1.25710924,109270.0,109260.0,0.00047638]
[1756613453178,1.25069267,109270.0,109260.0,0.00047638]
[1756613454566,1.25069244,109270.0,109260.0,0.00047638]
[1756613455868,1.29416945,109270.0,109260.0,0.00047638]
[1756613456774,1.30058591,109270.0,109260.0,0.00047638]
[1756613457818,1.30058582,109270.0,109260.0,0.00047638]
[1756613458200,1.29416945,109270.0,109260.0,0.00047638]
[1756613458397,1.30058585,109270.0,109260.0,0.00047638]
[1756613458802,1.59069244,109270.0,109260.0,0.00047638]
[1756613458999,0.1830496,109260.0,109250.0,0.0032]
[1756613459260,1.08972919,109260.0,109250.0,0.09618001]
[1756613459457,1.08972919,109260.0,109250.0,0.09833001]
[1756613460066,1.08972919,109260.0,109250.0,0.10033001]
[1756613460669,1.09168919,109260.0,109250.0,0.10033001]
[1756613460874,1.09168919,109260.0,109240.0,0.097919]
[1756613460875,0.18306636,109250.0,109240.0,0.097919]
[1756613461079,0.18306636,109250.0,109240.0,0.12264901]
[1756613461080,0.79322122,109250.0,109240.0,0.12264901]
[1756613461307,0.79322122,109250.0,109240.0,0.09834001]
[1756613461627,0.79322106,109250.0,109240.0,0.09834001]
[1756613461876,0.79518106,109250.0,109240.0,0.09834001]
[1756613462254,0.79518106,109250.0,109240.0,0.10134001]
[1756613463064,0.79518106,109250.0,109240.0,0.10434001]
[1756613464065,0.88666738,109250.0,109240.0,0.006]
[1756613467097,0.88664377,109250.0,109240.0,0.006]
[1756613470943,0.88664377,109250.0,109240.0,0.003]
[1756613471500,0.52308311,109240.0,109230.0,0.15853]
[1756613471729,1.11612909,109240.0,109230.0,0.25151001]
[1756613471899,1.11612909,109240.0,109230.0,0.25366001]
[1756613472617,1.11612909,109240.0,109230.0,0.25466001]
[1756613473471,1.11612909,109240.0,109230.0,0.25666001]
[1756613475275,0.52308311,109240.0,109230.0,0.25666001]
[1756613475401,1.11612909,109240.0,109230.0,0.25666001]
[1756613477730,0.52308311,109240.0,109230.0,0.25666001]
[1756613477931,1.11612909,109240.0,109230.0,0.25666001]
[1756613484866,1.11826909,109240.0,109230.0,0.25666001]
[1756613485492,1.11612909,109240.0,109230.0,0.25666001]
[1756613489036,1.11826909,109240.0,109230.0,0.25666001]
[1756613490482,1.11826909,109240.0,109230.0,0.25650001]
[1756613492212,1.13538489,109240.0,109230.0,0.25650001]
[1756613493499,1.11826909,109240.0,109230.0,0.25650001]
[1756613494149,1.11826909,109240.0,109230.0,0.10134001]
[1756613494335,1.13538858,109240.0,109230.0,0.25646001]
[1756613494540,1.13538858,109240.0,109230.0,0.10134001]
[1756613494772,1.13538858,109240.0,109230.0,0.25646001]
[1756613500074,1.11826909,109240.0,109230.0,0.25646001]
[1756613501217,1.11826909,109240.0,109230.0,0.25642001]
[1756613503457,1.11826909,109240.0,109230.0,0.28073401]
[1756613504721,1.11826909,109240.0,109230.0,0.12565401]
[1756613504924,1.11826909,109240.0,109230.0,0.28073401]
[1756613505415,1.11826909,109240.0,109230.0,0.28069401]
[1756613506475,0.52522311,109240.0,109230.0,0.28069401]
[1756613506697,1.11826909,109240.0,109230.0,0.28069401]
[1756613512330,1.11550925,109240.0,109230.0,0.28069401]
[1756613517742,0.52032327,109240.0,109230.0,0.28393401]
[1756613517942,0.52032327,109240.0,109230.0,0.48797271]
[1756613517943,0.18032327,109240.0,109230.0,0.48797271]
[1756613518145,0.4796061,109240.0,109230.0,0.48797271]
[1756613518764,0.29652299,109240.0,109230.0,0.48797271]
[1756613518903,0.4796061,109240.0,109230.0,0.48797271]
[1756613520224,0.18308311,109240.0,109230.0,0.48797271]
[1756613520431,0.18306636,109250.0,109230.0,0.48797271]
[1756613520605,0.18306636,109250.0,109240.0,0.36740194]
[1756613520832,0.52306636,109250.0,109240.0,0.37267194]
[1756613521034,0.47958935,109250.0,109240.0,0.37267194]
[1756613521166,0.19220208,109260.0,109240.0,0.40018794]
[1756613521377,0.82872507,109260.0,109250.0,0.17909882]
[1756613521585,1.12524806,109260.0,109250.0,0.27310883]
[1756613521847,1.12524806,109260.0,109250.0,0.30062483]
[1756613522417,0.53220208,109260.0,109250.0,0.30062483]
[1756613522612,1.12524806,109260.0,109250.0,0.30062483]
[1756613523025,1.12524806,109260.0,109250.0,0.29962483]
[1756613523375,0.53220208,109260.0,109250.0,0.29962483]
[1756613523803,1.12524806,109260.0,109250.0,0.29962483]
[1756613523975,0.53220208,109260.0,109250.0,0.29962483]
[1756613524181,1.07864494,109260.0,109250.0,0.30162483]
[1756613524565,1.07864494,109260.0,109250.0,0.30462483]
[1756613524764,1.08779742,109260.0,109250.0,0.30462483]
[1756613525566,0.79127443,109260.0,109250.0,0.30462483]
[1756613525781,1.08779742,109260.0,109250.0,0.30462483]
[1756613526784,1.08994742,109260.0,109250.0,0.15170483]
[1756613526949,1.08994742,109260.0,109250.0,0.30658483]
[1756613527642,1.08994742,109260.0,109250.0,0.30334483]
[1756613530464,0.49690144,109260.0,109250.0,0.30334483]
[1756613530886,1.08994742,109260.0,109250.0,0.30334483]
[1756613531368,0.49690144,109260.0,109250.0,0.30330483]
[1756613531573,1.08994742,109260.0,109250.0,0.30330483]
[1756613535744,0.49690144,109260.0,109250.0,0.30330483]
[1756613535940,1.08994742,109260.0,109250.0,0.30330483]
[1756613537709,1.08994742,109260.0,109250.0,0.30188732]
[1756613537911,1.09305742,109260.0,109250.0,0.14708732]
[1756613538120,1.09305742,109260.0,109250.0,0.30188732]
[1756613540020,0.49690144,109260.0,109250.0,0.30188732]
[1756613540223,1.08994742,109260.0,109250.0,0.30188732]
[1756613540546,1.09292742,109260.0,109250.0,0.30188732]
[1756613542316,1.09292742,109260.0,109250.0,0.14708732]
[1756613542521,1.09292742,109260.0,109250.0,0.30188732]
[1756613543452,1.08994742,109260.0,109250.0,0.30188732]
[1756613545217,1.08994742,109260.0,109250.0,0.30184732]
[1756613548763,1.08994742,109260.0,109250.0,0.14708732]
[1756613549058,1.09292742,109260.0,109250.0,0.29981732]
[1756613549691,1.38945041,109260.0,109250.0,0.28021601]
[1756613550773,0.49988144,109260.0,109250.0,0.28021601]
[1756613550977,1.09292742,109260.0,109250.0,0.28021601]
[1756613560627,1.38945041,109260.0,109250.0,0.28017601]
[1756613560834,1.38945041,109260.0,109250.0,0.187196]
[1756613561037,1.4065591,109260.0,109250.0,0.187196]
[1756613561257,1.38945041,109260.0,109250.0,0.15968]
[1756613561474,1.38945041,109260.0,109250.0,0.005]
[1756613561710,2.53519313,109260.0,109250.0,1e-08]
[1756613561985,2.56271713,109260.0,109250.0,1e-08]
[1756613562374,2.53660108,109260.0,109250.0,1e-08]
[1756613562773,0.18306636,109250.0,109240.0,0.15468]
[1756613562985,1.16592165,109250.0,109240.0,0.15468]
[1756613564712,0.18805636,109250.0,109240.0,0.15468]
[1756613564933,0.78110234,109250.0,109240.0,0.15468]
[1756613565351,0.78310234,109250.0,109240.0,0.15468]
[1756613568238,1.07962533,109250.0,109240.0,0.15468]
[1756613568446,0.78310234,109250.0,109240.0,0.15468]
[1756613568651,1.16792165,109250.0,109240.0,0.15468]
[1756613570469,0.87139866,109250.0,109240.0,0.15468]
[1756613575443,0.57121495,109250.0,109240.0,0.15782]
[1756613576067,0.75428131,109250.0,109240.0,0.15782]
[1756613576435,0.77649234,109250.0,109240.0,0.15782]
[1756613576643,0.77649234,109250.0,109240.0,0.00314]
[1756613578973,1.07301533,109250.0,109240.0,0.00314]
[1756613580338,1.15796202,109250.0,109240.0,0.00314]
[1756613582041,1.07301533,109250.0,109240.0,0.00314]
[1756613582620,0.52308311,109240.0,109230.0,0.15774]
[1756613582774,1.41265208,109240.0,109230.0,0.25072001]
[1756613582952,1.41265208,109240.0,109230.0,0.25279001]
[1756613583365,1.41265208,109240.0,109230.0,0.09819001]
[1756613583569,1.41265208,109240.0,109230.0,0.25279001]
[1756613583777,1.41265208,109240.0,109230.0,0.25379001]
[1756613583940,0.52308311,109240.0,109230.0,0.25379001]
[1756613584142,1.41265208,109240.0,109230.0,0.25379001]
[1756613586223,1.41265208,109240.0,109230.0,0.25375001]
[1756613587249,1.41265208,109240.0,109230.0,0.09919001]
[1756613587400,1.11612909,109240.0,109230.0,0.25375001]
[1756613591843,1.11650909,109240.0,109230.0,0.24854001]
[1756613592041,1.41303208,109240.0,109230.0,0.09398001]
[1756613592248,1.41303208,109240.0,109230.0,0.24854001]
[1756613594099,1.41303208,109240.0,109230.0,0.25168001]
[1756613594951,0.52308311,109240.0,109230.0,0.25375001]
[1756613595193,1.41265208,109240.0,109230.0,0.25375001]
[1756613595894,1.11612909,109240.0,109230.0,0.25375001]
[1756613596468,1.41265208,109240.0,109230.0,0.25375001]
[1756613599518,1.11612909,109240.0,109230.0,0.25375001]
[1756613600375,1.41265208,109240.0,109230.0,0.25375001]
[1756613611256,1.41303208,109240.0,109230.0,0.25375001]
[1756613612579,1.41303208,109240.0,109230.0,0.09919001]
[1756613612744,1.41303208,109240.0,109230.0,0.25363001]
[1756613619546,1.39860929,109240.0,109230.0,0.25363001]
[1756613622071,1.39860929,109240.0,109230.0,0.24838001]
[1756613622275,1.39860929,109240.0,109230.0,0.09398001]
[1756613622477,1.39860929,109240.0,109230.0,0.24838001]
[1756613624887,1.39860929,109240.0,109230.0,0.09398001]
[1756613625090,1.39860929,109240.0,109230.0,0.24838001]
[1756613626102,1.39860929,109240.0,109230.0,0.25134001]
[1756613627576,1.39860929,109240.0,109230.0,0.24834001]
[1756613628475,1.39860929,109240.0,109230.0,0.27586401]